fUSD/lending_fUSD_20250814
["ID","MTS","AMOUNT","RATE_DAILY","PERIOD"]
[379121871,1755151896031,-53231.97466737,0.00046,30]
[379121872,1755151896041,-680.66652612,0.00046,120]
[379121873,1755151896050,-230.87737237,0.00046,120]
[379121874,1755151896060,-500.0,0.00046,120]
[379121875,1755151896069,-185.246778,0.00046027,30]
[379121876,1755151896079,-185.246778,0.00046027,30]
[379121877,1755151896088,-199.0,0.00046027,11]
[379121878,1755151896098,-1156.41848616,0.00046226,2]
[379121879,1755151896116,-153.0,0.00046256,2]
[379121880,1755151896128,-500.0,0.00046301,30]
[379121881,1755151896391,-1592.49,0.00046361,30]
[379121882,1755151896402,-854.1635307,0.000464,120]
[379121883,1755151896412,-485.567522,0.000464,30]
[379121884,1755151896423,-151.0,0.00046432,30]
[379121885,1755151896433,-156.41,0.00046575,2]
[379121886,1755151896443,-152.0,0.0004658,24]
[379121887,1755151896453,-879.0,0.0004659,2]
[379121888,1755151896463,-739.37736995,0.000466,2]
[379121889,1755151896474,-247.33,0.00046634,120]
[379121890,1755151896484,-173.4,0.00046635,30]
[379121891,1755151896494,-300.0,0.00046635,30]
[379121892,1755151896505,-300.0,0.00046635,30]
[379121893,1755151896515,-150.0,0.00046635,30]
[379121894,1755151896525,-150.0,0.00046635,30]
[379121895,1755151896535,-173.4,0.00046635,30]
[379121896,1755151896546,-150.0,0.00046635,30]
[379121897,1755151896558,-360.13,0.00046635,30]
[379121898,1755151896568,-173.4,0.00046635,30]
[379121899,1755151896578,-300.0,0.00046635,30]
[379121900,1755151896589,-158.78,0.00046635,30]
[379121901,1755151896599,-300.0,0.00046635,30]
[379121902,1755151896612,-300.51,0.00046635,30]
[379121903,1755151896622,-360.13,0.00046635,30]
[379121904,1755151896632,-300.0,0.00046635,30]
[379121905,1755151896642,-173.4,0.00046635,30]
[379121906,1755151896652,-150.0,0.00046635,30]
[379121907,1755151896663,-150.0,0.00046635,30]
[379121908,1755151896673,-150.0,0.00046635,30]
[379121909,1755151896682,-360.13,0.00046635,30]
[379121910,1755151896692,-322.96,0.00046635,30]
[379121911,1755151896702,-304.31,0.00046635,30]
[379121912,1755151896712,-150.0,0.00046635,30]
[379121913,1755151896722,-150.0,0.00046635,30]
[379121914,1755151896733,-173.4,0.00046635,30]
[379121915,1755151896743,-360.13,0.00046635,30]
[379121916,1755151896754,-150.0,0.00046635,30]
[379121917,1755151896764,-346.7,0.00046635,30]
[379121918,1755151896775,-346.8,0.00046635,30]
[379121919,1755151896786,-150.0,0.00046635,30]
[379121920,1755151896796,-150.0,0.00046635,30]
[379121921,1755151896806,-150.0,0.00046635,30]
[379121922,1755151896817,-360.13,0.00046635,30]
[379121923,1755151896827,-360.13,0.00046635,30]
[379121924,1755151896841,-173.4,0.00046635,30]
[379121925,1755151896851,-300.0,0.00046635,30]
[379121926,1755151896865,-173.4,0.00046635,30]
[379121927,1755151896875,-360.13,0.00046635,30]
[379121928,1755151896886,-150.0,0.00046635,30]
[379121929,1755151896897,-173.4,0.00046635,30]
[379121930,1755151896907,-150.0,0.00046635,30]
[379121931,1755151896918,-150.0,0.00046635,30]
[379121932,1755151896931,-150.0,0.00046635,30]
[379121933,1755151896941,-4000.0,0.00046674,8]
[379121934,1755151896952,-697.85,0.00046685,30]
[379121935,1755151896963,-323.89,0.00046685,30]
[379121936,1755151896974,-150.0,0.00046685,30]
[379121937,1755151896984,-302.02,0.00046685,30]
[379121938,1755151896994,-216.02,0.00046685,30]
[379121939,1755151897006,-200.0,0.00046687,120]
[379121940,1755151897017,-200.0,0.00046696,120]
[379121941,1755151897027,-2000.0,0.000467,2]
[379121942,1755151897038,-199.0,0.00046712,12]
[379121943,1755151897048,-500.0,0.00046744,120]
[379121944,1755151897058,-4025.07111969,0.000468,120]
[379121945,1755151897068,-1178.66246687,0.000468,120]
[379121946,1755151897079,-2500.0,0.00046864,2]
[379121947,1755151897089,-601.63162966,0.00047,30]
[379121948,1755151897099,-346.8960984,0.00047,120]
[379121949,1755151897114,-400.0,0.00047031,120]
[379121950,1755151897125,-500.0,0.00047187,120]
[379121951,1755151897136,-152.0,0.00047215,25]
[379121952,1755151897147,-796.17,0.00047272,30]
[379121953,1755151897158,-199.0,0.00047397,13]
[379121954,1755151897169,-500.0,0.00047401,120]
[379121955,1755151897179,-296.49,0.00047409,30]
[379121956,1755151897190,-538.69,0.00047409,30]
[379121957,1755151897200,-173.4,0.00047457,30]
[379121958,1755151897210,-360.13,0.00047457,30]
[379121959,1755151897220,-173.4,0.00047457,30]
[379121960,1755151897231,-360.13,0.00047457,30]
[379121961,1755151897242,-150.0,0.00047457,30]
[379121962,1755151897252,-360.13,0.00047457,30]
[379121963,1755151897262,-150.0,0.00047457,30]
[379121964,1755151897273,-173.4,0.00047457,30]
[379121965,1755151897283,-150.0,0.00047457,30]
[379121966,1755151897293,-173.4,0.00047457,30]
[379121967,1755151897303,-150.0,0.00047457,30]
[379121968,1755151897314,-217.42,0.00047457,30]
[379121969,1755151897324,-173.4,0.00047457,30]
[379121970,1755151897335,-360.13,0.00047457,30]
[379121971,1755151897345,-151.77,0.00047457,30]
[379121972,1755151897359,-360.13,0.00047457,30]
[379121973,1755151897369,-173.25,0.00047457,30]
[379121974,1755151897380,-360.13,0.00047457,30]
[379121975,1755151897391,-360.13,0.00047457,30]
[379121976,1755151897401,-326.54,0.00047457,30]
[379121977,1755151897411,-720.06,0.00047457,30]
[379121978,1755151897422,-346.7,0.00047457,30]
[379121979,1755151897432,-2881.0485838,0.000476,2]
[379121980,1755151897443,-500.0,0.00047629,120]
[379121981,1755151897453,-200.0,0.00047687,120]
[379121982,1755151897463,-159.64364072,0.00047699,30]
[379121983,1755151897473,-2000.0,0.000477,120]
[379121984,1755151897484,-2108.0,0.000477,120]
[379121985,1755151897494,-858.0,0.0004777,2]
[379121986,1755151897504,-513.0,0.00047823,24]
[379121987,1755151897514,-152.0,0.0004785,26]
[379121988,1755151897524,-1762.0,0.00048,120]
[379121989,1755151897535,-1597.58798397,0.00048,120]
[379121990,1755151897546,-105995.87463437,0.00048,120]
[379121991,1755151897556,-525.49139718,0.00048,60]
[379121992,1755151897566,-705.47899997,0.00048,120]
[379121993,1755151897577,-30827.50090331,0.00048,30]
[379121994,1755151897587,-1183.95096363,0.00048,120]
[379121995,1755151897597,-151.0,0.00048,120]
[379121996,1755151897608,-152.390473,0.00048,120]
[379121997,1755151897618,-680.66652612,0.00048,120]
[379121998,1755151897630,-230.87737237,0.00048,120]
[379121999,1755151897642,-151.0,0.00048,120]
[379122000,1755151897652,-177.158252,0.00048,120]
[379122001,1755151897662,-177.158252,0.00048,120]
[379122002,1755151897672,-100000.0,0.00048,5]
[379122003,1755151897682,-247.33,0.00048004,120]
[379122004,1755151897692,-210.0,0.0004807,30]
[379122005,1755151897702,-500.0,0.00048072,120]
[379122006,1755151897712,-199.0,0.00048082,14]
[379122007,1755151897722,-159.0,0.000482,120]
[379122008,1755151897733,-159.64364072,0.00048247,30]
[379122009,1755151897743,-154.0,0.00048267,2]
[379122010,1755151897753,-2500.0,0.00048306,2]
[379122011,1755151897763,-3931.02299662,0.00048318,52]
[379122012,1755151897774,-155.60457995,0.0004835,2]
[379122013,1755151897784,-400.0,0.00048401,120]
[379122014,1755151897795,-152.0,0.00048485,27]
[379122015,1755151897805,-500.0,0.00048514,120]
[379122016,1755151897815,-200.0,0.00048687,120]
[379122017,1755151897825,-199.0,0.00048767,15]
[379122018,1755151897835,-159.64364072,0.00048767,30]
[379122019,1755151897845,-153.66120936,0.00048767,30]
[379122020,1755151897855,-158.8816279,0.00048767,30]
[379122021,1755151897865,-33787.62718159,0.000488,120]
[379122022,1755151897874,-23522.9117039,0.000488,120]
[379122023,1755151897885,-61961.11918412,0.000488,120]
[379122024,1755151897896,-3634.08582596,0.000488,110]
[379122025,1755151897906,-783.62120197,0.000488,120]
[379122026,1755151897919,-1557.3956609,0.000488,120]
[379122027,1755151897932,-151.0,0.000488,120]
[379122028,1755151897942,-185.246778,0.000488,120]
[379122029,1755151897952,-185.246778,0.000488,120]
[379122030,1755151897963,-485.567522,0.000488,120]
[379122031,1755151897973,-155.0,0.000488,120]
[379122032,1755151897983,-546160.81932264,0.000488,5]
[379122033,1755151897993,-500.0,0.00048803,120]
[379122034,1755151898005,-524.6,0.00048938,120]
[379122035,1755151898015,-838.0,0.0004895,2]
[379122036,1755151898025,-500.0,0.00048957,120]
[379122037,1755151898035,-1199.20597015,0.00048965,2]
[379122038,1755151898045,-162.85032219,0.00049,30]
[379122039,1755151898055,-2040.22621621,0.00049,30]
[379122040,1755151898066,-4000.0,0.00049007,8]
[379122041,1755151898081,-152.0,0.0004912,28]
[379122042,1755151898093,-186.61759833,0.0004912,5]
[379122043,1755151898105,-152.0,0.0004912,5]
[379122044,1755151898115,-192.67286845,0.00049219,120]
[379122045,1755151898126,-159.64364072,0.00049288,30]
[379122046,1755151898136,-151.0,0.00049315,120]
[379122047,1755151898146,-177.158252,0.00049315,120]
[379122048,1755151898156,-177.158252,0.00049315,120]
[379122049,1755151898167,-500.0,0.00049315,120]
[379122050,1755151898177,-1374.0,0.00049315,120]
[379122051,1755151898190,-1374.0,0.00049315,120]
[379122052,1755151898199,-1374.0,0.00049315,120]
[379122053,1755151898211,-1374.0,0.00049315,120]
[379122054,1755151898222,-1374.0,0.00049315,120]
[379122055,1755151898233,-1374.0,0.00049315,120]
[379122056,1755151898243,-670.0,0.00049315,120]
[379122057,1755151898253,-670.0,0.00049315,120]
[379122058,1755151898262,-670.0,0.00049315,120]
[379122059,1755151898272,-670.0,0.00049315,120]
[379122060,1755151898282,-670.0,0.00049315,120]
[379122061,1755151898292,-670.0,0.00049315,120]
[379122062,1755151898302,-670.0,0.00049315,120]
[379122063,1755151898312,-670.0,0.00049315,120]
[379122064,1755151898322,-670.0,0.00049315,120]
[379122065,1755151898332,-670.0,0.00049315,120]
[379122066,1755151898342,-670.0,0.00049315,120]
[379122067,1755151898352,-670.0,0.00049315,120]
[379122068,1755151898363,-670.0,0.00049315,120]
[379122069,1755151898373,-1374.0,0.00049315,120]
[379122070,1755151898383,-1374.0,0.00049315,120]
[379122071,1755151898394,-1374.0,0.00049315,120]
[379122072,1755151898404,-1374.0,0.00049315,120]
[379122073,1755151898414,-1374.0,0.00049315,120]
[379122074,1755151898424,-1374.0,0.00049315,120]
[379122075,1755151898434,-1374.0,0.00049315,120]
[379122076,1755151898445,-1374.0,0.00049315,120]
[379122077,1755151898454,-1374.0,0.00049315,120]
[379122078,1755151898465,-1374.0,0.00049315,120]
[379122079,1755151898475,-1374.0,0.00049315,120]
[379122080,1755151898485,-1374.0,0.00049315,120]
[379122081,1755151898495,-1374.0,0.00049315,120]
[379122082,1755151898505,-1374.0,0.00049315,120]
[379122083,1755151898514,-670.0,0.00049315,120]
[379122084,1755151898524,-670.0,0.00049315,120]
[379122085,1755151898533,-670.0,0.00049315,120]
[379122086,1755151898543,-670.0,0.00049315,120]
[379122087,1755151898553,-670.0,0.00049315,120]
[379122088,1755151898562,-670.0,0.00049315,120]
[379122089,1755151898746,-670.0,0.00049315,120]
[379122090,1755151898756,-670.0,0.00049315,120]
[379122091,1755151898766,-670.0,0.00049315,120]
[379122092,1755151898776,-670.0,0.00049315,120]
[379122093,1755151898786,-670.0,0.00049315,120]
[379122094,1755151898795,-670.0,0.00049315,120]
[379122095,1755151898805,-670.0,0.00049315,120]
[379122096,1755151898815,-670.0,0.00049315,120]
[379122097,1755151898825,-247.33,0.00049374,120]
[379122098,1755151898835,-500.0,0.00049399,120]
[379122099,1755151898846,-2000.0,0.000494,2]
[379122100,1755151898857,-199.0,0.00049452,16]
[379122101,1755151898867,-500.0,0.00049452,120]
[379122102,1755151898877,-2122.26547185,0.00049494,120]
[379122103,1755151898887,-6382.856144,0.000495,120]
[379122104,1755151898897,-500.0,0.00049589,120]
[379122105,1755151898907,-203.685787,0.00049687,120]
[379122106,1755151898916,-500.0,0.00049726,120]
[379122107,1755151898926,-2500.0,0.00049748,2]
[379122108,1755151898939,-400.0,0.00049771,120]
[379122109,1755151898949,-500.0,0.00049842,120]
[379122110,1755151898959,-500.0,0.00049863,120]
[379122111,1755151898970,-103664.21857232,0.0004988,30]
[379122112,1755151898980,-955.8,0.000499,120]
[379122113,1755151898990,-2509.8964535,0.000499,120]
[379122114,1755151899000,-9857.67930102,0.000499,120]
[379122115,1755151899011,-469.28703373,0.00049999,120]
[379122116,1755151899021,-378.39369292,0.00049999,120]
[379122117,1755151899031,-476.67274992,0.00049999,120]
[379122118,1755151899041,-390.70260475,0.00049999,120]
[379122119,1755151899050,-356.47309016,0.00049999,120]
[379122120,1755151899060,-500.0,0.00049999,120]
[379122121,1755151899071,-500.0,0.00049999,120]
[379122122,1755151899080,-635.26395182,0.00049999,120]
[379122123,1755151899089,-577.24931576,0.00049999,120]
[379122124,1755151899099,-335.39900448,0.00049999,120]
[379122125,1755151899110,-203.0718744,0.0005,120]
[379122126,1755151899120,-26000.0,0.0005,120]
[379122127,1755151899130,-500000.0,0.0005,120]
[379122128,1755151899140,-500000.0,0.0005,120]
[379122129,1755151899150,-500000.0,0.0005,120]
[379122130,1755151899160,-250.0,0.0005,120]
[379122131,1755151899170,-151.0,0.0005,120]
[379122132,1755151899181,-151.0,0.0005,120]
[379122133,1755151899191,-177.158252,0.0005,120]
[379122134,1755151899203,-177.158252,0.0005,120]
[379122135,1755151899214,-151.0,0.0005,120]
[379122136,1755151899224,-185.246778,0.0005,120]
[379122137,1755151899234,-185.246782,0.0005,120]
[379122138,1755151899243,-485.567513,0.0005,120]
[379122139,1755151899253,-100000.0,0.0005,6]
[379122140,1755151899263,-202.2,0.0005,120]
[379122141,1755151899272,-500.0,0.0005,120]
[379122142,1755151899282,-150.0,0.00050019,30]
[379122143,1755151899292,-164.595,0.00050019,120]
[379122144,1755151899302,-150.0,0.00050019,30]
[379122145,1755151899312,-150.0,0.00050019,30]
[379122146,1755151899322,-150.0,0.00050019,30]
[379122147,1755151899332,-150.0,0.00050019,30]
[379122148,1755151899342,-150.0,0.00050019,30]
[379122149,1755151899352,-150.0,0.00050019,30]
[379122150,1755151899363,-150.0,0.00050019,30]
[379122151,1755151899372,-150.0,0.00050019,30]
[379122152,1755151899382,-150.0,0.00050019,30]
[379122153,1755151899392,-150.407,0.00050019,30]
[379122154,1755151899402,-336.41,0.00050067,120]
[379122155,1755151899411,-513.0,0.00050121,27]
[379122156,1755151899421,-199.0,0.00050136,17]
[379122157,1755151899432,-500.0,0.00050136,120]
[379122158,1755151899443,-817.0,0.0005014,2]
[379122159,1755151899453,-500.0,0.00050204,120]
[379122160,1755151899463,-500.0,0.00050273,120]
[379122161,1755151899472,-155.0,0.00050278,2]
[379122162,1755151899482,-500.0,0.00050285,120]
[379122163,1755151899491,-581.66595003,0.0005041,120]
[379122164,1755151899501,-8290.5,0.000506,7]
[379122165,1755151899511,-500.0,0.00050727,120]
[379122166,1755151899521,-247.33,0.00050744,120]
[379122167,1755151899531,-199.0,0.00050821,18]
[379122168,1755151899541,-1227.2223137,0.00050965,2]
[379122169,1755151899551,-557.58609829,0.00051,30]
[379122170,1755151899561,-500000.0,0.00051,120]
[379122171,1755151899570,-500000.0,0.00051,120]
[379122172,1755151899580,-500000.0,0.00051,120]
[379122173,1755151899589,-296.288021,0.00051,120]
[379122174,1755151899599,-1361.33305224,0.00051,120]
[379122175,1755151899610,-461.75474473,0.00051,120]
[379122176,1755151899620,-151.0,0.00051,120]
[379122177,1755151899629,-151.0,0.00051,120]
[379122178,1755151899639,-177.158252,0.00051,120]
[379122179,1755151899649,-177.158252,0.00051,120]
[379122180,1755151899658,-177.158252,0.00051,120]
[379122181,1755151899668,-177.158252,0.00051,120]
[379122182,1755151899678,-400.0,0.00051141,120]
[379122183,1755151899687,-500.0,0.0005117,120]
[379122184,1755151899697,-2500.0,0.0005119,2]
[379122185,1755151899706,-3931.02299662,0.00051245,58]
[379122186,1755151899716,-210.0,0.0005131,30]
[379122187,1755151899726,-797.0,0.0005132,2]
[379122188,1755151899736,-4000.0,0.0005134,8]
[379122189,1755151899746,-199.0,0.00051506,19]
[379122190,1755151899755,-506.54829036,0.00051606,120]
[379122191,1755151899766,-500.0,0.00051612,120]
[379122192,1755151899776,-150.0,0.00051681,120]
[379122193,1755151899786,-1243.57659104,0.00051704,2]
[379122194,1755151899796,-1082.0417323,0.00051929,2]
[379122195,1755151899806,-521.2699029,0.00051929,2]
[379122196,1755151899816,-624.3812171,0.00051964,2]
[379122197,1755151899826,-4972.8309182,0.00051964,2]
[379122198,1755151899835,-8195.78933254,0.00052,120]
[379122199,1755151899846,-500000.0,0.00052,120]
[379122200,1755151899857,-1000.0,0.00052,120]
[379122201,1755151899867,-500000.0,0.00052,120]
[379122202,1755151899876,-500000.0,0.00052,120]
[379122203,1755151899886,-151.0,0.00052,120]
[379122204,1755151899896,-177.158252,0.00052,120]
[379122205,1755151899905,-177.158251,0.00052,120]
[379122206,1755151899915,-670.0,0.00052031,120]
[379122207,1755151899925,-670.0,0.00052031,120]
[379122208,1755151899939,-670.0,0.00052031,120]
[379122209,1755151899948,-670.0,0.00052031,120]
[379122210,1755151899958,-670.0,0.00052031,120]
[379122211,1755151899968,-670.0,0.00052031,120]
[379122212,1755151899983,-670.0,0.00052031,120]
[379122213,1755151899993,-670.0,0.00052031,120]
[379122214,1755151900003,-670.0,0.00052031,120]
[379122215,1755151900014,-670.0,0.00052031,120]
[379122216,1755151900024,-670.0,0.00052031,120]
[379122217,1755151900034,-670.0,0.00052031,120]
[379122218,1755151900044,-670.0,0.00052031,120]
[379122219,1755151900055,-670.0,0.00052031,120]
[379122220,1755151900065,-1374.0,0.00052037,120]
[379122221,1755151900075,-1374.0,0.00052037,120]
[379122222,1755151900085,-1374.0,0.00052037,120]
[379122223,1755151900095,-1374.0,0.00052037,120]
[379122224,1755151900106,-1374.0,0.00052037,120]
[379122225,1755151900116,-1374.0,0.00052037,120]
[379122226,1755151900126,-1374.0,0.00052037,120]
[379122227,1755151900136,-1374.0,0.00052037,120]
[379122228,1755151900145,-1374.0,0.00052037,120]
[379122229,1755151900155,-1374.0,0.00052037,120]
[379122230,1755151900167,-1374.0,0.00052037,120]
[379122231,1755151900177,-1374.0,0.00052037,120]
[379122232,1755151900189,-1374.0,0.00052037,120]
[379122233,1755151900199,-1374.0,0.00052037,120]
[379122234,1755151900209,-534.66994043,0.00052055,120]
[379122235,1755151900219,-670.0,0.00052064,120]
[379122236,1755151900229,-670.0,0.00052064,120]
[379122237,1755151900240,-670.0,0.00052064,120]
[379122238,1755151900250,-670.0,0.00052064,120]
[379122239,1755151900260,-670.0,0.00052064,120]
[379122240,1755151900269,-670.0,0.00052064,120]
[379122241,1755151900279,-670.0,0.00052064,120]
[379122242,1755151900289,-670.0,0.00052064,120]
[379122243,1755151900299,-670.0,0.00052064,120]
[379122244,1755151900309,-670.0,0.00052064,120]
[379122245,1755151900319,-670.0,0.00052064,120]
[379122246,1755151900329,-670.0,0.00052064,120]
[379122247,1755151900339,-670.0,0.00052064,120]
[379122248,1755151900349,-670.0,0.00052064,120]
[379122249,1755151900360,-1374.0,0.00052071,120]
[379122250,1755151900371,-1374.0,0.00052071,120]
[379122251,1755151900381,-1374.0,0.00052071,120]
[379122252,1755151900391,-1374.0,0.00052071,120]
[379122253,1755151900400,-1374.0,0.00052071,120]
[379122254,1755151900410,-1374.0,0.00052071,120]
[379122255,1755151900420,-1374.0,0.00052071,120]
[379122256,1755151900431,-1374.0,0.00052071,120]
[379122257,1755151900441,-1374.0,0.00052071,120]
[379122258,1755151900451,-1374.0,0.00052071,120]
[379122259,1755151900461,-1374.0,0.00052071,120]
[379122260,1755151900471,-1374.0,0.00052071,120]
[379122261,1755151900481,-1374.0,0.00052071,120]
[379122262,1755151900491,-1374.0,0.00052071,120]
[379122263,1755151900501,-670.0,0.00052098,120]
[379122264,1755151900513,-670.0,0.00052098,120]
[379122265,1755151900523,-670.0,0.00052098,120]
[379122266,1755151900532,-670.0,0.00052098,120]
[379122267,1755151900542,-670.0,0.00052098,120]
[379122268,1755151900551,-670.0,0.00052098,120]
[379122269,1755151900561,-670.0,0.00052098,120]
[379122270,1755151900570,-670.0,0.00052098,120]
[379122271,1755151900580,-670.0,0.00052098,120]
[379122272,1755151900590,-670.0,0.00052098,120]
[379122273,1755151900600,-670.0,0.00052098,120]
[379122274,1755151900611,-670.0,0.00052098,120]
[379122275,1755151900620,-670.0,0.00052098,120]
[379122276,1755151900630,-670.0,0.00052098,120]
[379122277,1755151900639,-1374.0,0.00052104,120]
[379122278,1755151900650,-1374.0,0.00052104,120]
[379122279,1755151900659,-1374.0,0.00052104,120]
[379122280,1755151900669,-1374.0,0.00052104,120]
[379122281,1755151900678,-1374.0,0.00052104,120]
[379122282,1755151900687,-1374.0,0.00052104,120]
[379122283,1755151900697,-1374.0,0.00052104,120]
[379122284,1755151900707,-1374.0,0.00052104,120]
[379122285,1755151900716,-1374.0,0.00052104,120]
[379122286,1755151900726,-1374.0,0.00052104,120]
[379122287,1755151900735,-1374.0,0.00052104,120]
[379122288,1755151900745,-1374.0,0.00052104,120]
[379122289,1755151900757,-1374.0,0.00052104,120]
[379122290,1755151900769,-1374.0,0.00052104,120]
[379122291,1755151900779,-247.33,0.00052114,120]
[379122292,1755151900788,-670.0,0.00052132,120]
[379122293,1755151900798,-670.0,0.00052132,120]
[379122294,1755151900808,-670.0,0.00052132,120]
[379122295,1755151900818,-670.0,0.00052132,120]
[379122296,1755151900828,-670.0,0.00052132,120]
[379122297,1755151900838,-670.0,0.00052132,120]
[379122298,1755151900847,-670.0,0.00052132,120]
[379122299,1755151900857,-670.0,0.00052132,120]
[379122300,1755151900866,-670.0,0.00052132,120]
[379122301,1755151900877,-670.0,0.00052132,120]
[379122302,1755151900886,-670.0,0.00052132,120]
[379122303,1755151900895,-670.0,0.00052132,120]
[379122304,1755151900905,-670.0,0.00052132,120]
[379122305,1755151900915,-670.0,0.00052132,120]
[379122306,1755151900924,-1374.0,0.00052138,120]
[379122307,1755151900937,-1374.0,0.00052138,120]
[379122308,1755151900946,-1374.0,0.00052138,120]
[379122309,1755151900956,-1374.0,0.00052138,120]
[379122310,1755151900965,-1374.0,0.00052138,120]
[379122311,1755151900976,-1374.0,0.00052138,120]
[379122312,1755151900986,-1374.0,0.00052138,120]
[379122313,1755151900996,-1374.0,0.00052138,120]
[379122314,1755151901007,-1374.0,0.00052138,120]
[379122315,1755151901018,-1374.0,0.00052138,120]
[379122316,1755151901027,-1374.0,0.00052138,120]
[379122317,1755151901037,-1374.0,0.00052138,120]
[379122318,1755151901046,-1374.0,0.00052138,120]
[379122319,1755151901057,-1374.0,0.00052138,120]
[379122320,1755151901067,-199.0,0.00052191,20]
[379122321,1755151901076,-2000.0,0.000522,2]
[379122322,1755151901085,-3579.486,0.00052226,95]
[379122323,1755151901096,-151.0,0.00052244,2]
[379122324,1755151901105,-156.0,0.00052289,2]
[379122325,1755151901115,-155.0,0.000524,120]
[379122326,1755151901124,-513.0,0.00052419,29]
[379122327,1755151901135,-776.0,0.000525,2]
[379122328,1755151901144,-400.0,0.0005251,120]
[379122329,1755151901153,-2500.0,0.00052632,2]
[379122330,1755151901163,-199.0,0.00052876,21]
[379122331,1755151901172,-1762.0,0.00053,120]
[379122332,1755151901182,-150.19,0.00053,120]
[379122333,1755151901191,-1532.0,0.00053,120]
[379122334,1755151901201,-1632.0,0.00053,120]
[379122335,1755151901211,-500000.0,0.00053,120]
[379122336,1755151901220,-500000.0,0.00053,120]
[379122337,1755151901229,-500000.0,0.00053,120]
[379122338,1755151901239,-159.0,0.000532,120]
[379122339,1755151901249,-10000.0,0.00053463,7]
[379122340,1755151901258,-247.33,0.00053484,120]
[379122341,1755151901268,-199.0,0.00053561,22]
[379122342,1755151901277,-4000.0,0.00053672,8]
[379122343,1755151901287,-756.0,0.0005369,2]
[379122344,1755151901296,-11832.92044908,0.000537,90]
[379122345,1755151901306,-1182.56,0.00053708,30]
[379122346,1755151901315,-1182.56,0.00053708,30]
[379122347,1755151901324,-3001.03,0.00053767,90]
[379122348,1755151901334,-3001.03,0.00053767,90]
[379122349,1755151901343,-3001.03,0.00053767,90]
[379122350,1755151901353,-3001.03,0.00053767,90]
[379122351,1755151901364,-400.0,0.0005388,120]
[379122352,1755151901373,-524.6,0.00053916,120]
[379122353,1755151901383,-500000.0,0.00054,120]
[379122354,1755151901393,-500000.0,0.00054,120]
[379122355,1755151901403,-1701.6663153,0.00054,120]
[379122356,1755151901412,-577.19343091,0.00054,120]
[379122357,1755151901422,-3001.03,0.00054041,90]
[379122358,1755151901431,-3001.03,0.00054041,90]
[379122359,1755151901441,-2500.0,0.00054074,2]
[379122360,1755151901450,-3931.02299662,0.00054172,65]
[379122361,1755151901460,-199.0,0.00054246,23]
[379122362,1755151901469,-2500.0,0.00054246,120]
[379122363,1755151901479,-2500.0,0.00054246,120]
[379122364,1755151901488,-2110.86976284,0.00054246,120]
[379122365,1755151901497,-1000.0,0.00054299,30]
[379122366,1755151901506,-157.0,0.000543,2]
[379122367,1755151901515,-3001.03,0.00054315,90]
[379122368,1755151901525,-3001.03,0.00054315,90]
[379122369,1755151901534,-1289.58892491,0.00054443,2]
[379122370,1755151901544,-2000.9925,0.0005452,3]